fUST/lending_fUST_20250722
["ID","MTS","AMOUNT","RATE_DAILY","PERIOD"]
[373793323,1753113691577,200.0,0.00025572,120]
[373793324,1753113753087,2000.0,0.0001798,120]
[373793325,1753113881190,218.97,0.00012938,2]
[373793326,1753113882072,437.94,0.00014115,2]
[373793327,1753113882482,656.92,0.00015291,2]
[373793328,1753113882910,875.89,0.00016467,2]
[373793329,1753113883352,1094.86,0.00017643,2]
[373793330,1753113942095,-2974.70878805,0.00018491,2]
[373793334,1753114023655,177.17,0.00012896,2]
[373793335,1753114024095,354.34,0.00014068,2]
[373793336,1753114025028,531.51,0.00015241,2]
[373793337,1753114026262,708.67,0.00016413,2]
[373793338,1753114026698,885.84,0.00017586,2]
[373793339,1753114040318,-1605.13006671,0.00018677,2]
[373793343,1753114112850,150.0,0.0001309,2]
[373793344,1753114113490,286.69,0.0001428,2]
[373793345,1753114113684,430.04,0.0001547,2]
[373793346,1753114114091,573.38,0.0001666,2]
[373793347,1753114114524,716.73,0.00017851,2]
[373793349,1753114146273,-2739.0990195,0.00018677,2]
[373793350,1753114146339,-223.0,0.00018866,2]
[373793351,1753114146410,-1200.0,0.00018866,2]
[373793352,1753114146480,-500.0,0.00018867,2]
[373793353,1753114146550,-207.21857065,0.00018867,2]
[373793354,1753114146619,-460.0,0.00018867,2]
[373793355,1753114146691,-460.0,0.00018867,2]
[373793356,1753114146756,-460.0,0.00018867,2]
[373793357,1753114146819,-460.0,0.00018867,2]
[373793358,1753114146886,-527.35429661,0.00018867,2]
[373793359,1753114146952,-460.0,0.00018867,2]
[373793360,1753114147016,-580.02764968,0.00018867,2]
[373793361,1753114147079,-460.0,0.00018868,2]
[373793362,1753114147143,-460.0,0.00018868,2]
[373793363,1753114147206,-460.0,0.00018868,2]
[373793364,1753114147270,-460.0,0.00018868,2]
[373793365,1753114147335,-460.0,0.00018868,2]
[373793366,1753114147401,-460.0,0.00018868,2]
[373793367,1753114147468,-460.0,0.00018868,2]
[373793368,1753114147537,-460.0,0.00018868,2]
[373793369,1753114147602,-460.0,0.00018868,2]
[373793370,1753114147665,-511.11175927,0.00018868,2]
[373793371,1753114147730,-460.0,0.00018868,2]
[373793372,1753114147794,-549.07999999,0.00018868,2]
[373793373,1753114147860,-460.0,0.00018868,2]
[373793374,1753114147927,-460.0,0.00018868,2]
[373793375,1753114147996,-460.0,0.00018868,2]
[373793376,1753114148062,-460.0,0.00018868,2]
[373793377,1753114148129,-460.0,0.00018868,2]
[373793378,1753114148196,-460.0,0.00018868,2]
[373793379,1753114148260,-460.0,0.00018868,2]
[373793380,1753114148322,-460.0,0.00018868,2]
[373793381,1753114148393,-460.0,0.00018868,2]
[373793382,1753114148461,-460.0,0.00018868,2]
[373793383,1753114148532,-460.0,0.00018868,2]
[373793384,1753114148602,-460.0,0.00018868,2]
[373793385,1753114148666,-460.0,0.00018868,2]
[373793386,1753114148733,-460.0,0.00018868,2]
[373793387,1753114148796,-460.0,0.00018868,2]
[373793388,1753114148859,-496.29,0.00018868,2]
[373793389,1753114148922,-460.0,0.00018868,2]
[373793390,1753114148986,-460.0,0.00018868,2]
[373793391,1753114149047,-460.0,0.00018868,2]
[373793392,1753114149108,-460.0,0.00018868,2]
[373793393,1753114149167,-138.98653577,0.00018868,2]
[373793394,1753114192352,150.0,0.00013043,2]
[373793395,1753114192753,231.79,0.00014229,2]
[373793396,1753114193168,347.68,0.00015415,2]
[373793397,1753114196036,463.58,0.00016601,2]
[373793398,1753114196452,579.47,0.00017786,2]
[373793439,1753114232090,-1002.85576312,0.00018679,2]
[373793440,1753114232104,-1678.20636262,0.00018679,2]
[373793441,1753114232114,-300.0,0.00018867,2]
[373793442,1753114232124,-464.63392845,0.00018867,2]
[373793443,1753114232135,-259.63602009,0.00018867,2]
[373793444,1753114232145,-321.01346423,0.00018868,2]
[373793445,1753114232155,-460.0,0.00018868,2]
[373793446,1753114232165,-460.0,0.00018868,2]
[373793447,1753114232176,-460.0,0.00018868,2]
[373793448,1753114232186,-460.0,0.00018868,2]
[373793449,1753114232196,-460.0,0.00018868,2]
[373793451,1753114232207,-464.30503232,0.00018868,2]
[373793453,1753114232217,-258.24552175,0.00018868,2]
[373793455,1753114232229,-201.75447825,0.00018868,2]
[373793457,1753114232239,-460.0,0.00018868,2]
[373793459,1753114232249,-460.0,0.00018868,2]
[373793462,1753114232259,-101.25388855,0.00018868,2]
[373793464,1753114232276,-358.74611145,0.00018868,2]
[373793467,1753114232287,-460.0,0.00018868,2]
[373793482,1753114232451,-460.0,0.00018868,2]
[373793484,1753114232465,-460.0,0.00018868,2]
[373793486,1753114232475,-460.0,0.00018868,2]
[373793488,1753114232484,-460.0,0.00018868,2]
[373793490,1753114232494,-460.0,0.00018868,2]
[373793492,1753114232503,-460.0,0.00018868,2]
[373793495,1753114232512,-460.0,0.00018868,2]
[373793496,1753114232521,-460.0,0.00018868,2]
[373793499,1753114232530,-460.0,0.00018868,2]
[373793501,1753114232539,-460.0,0.00018868,2]
[373793503,1753114232548,-460.0,0.00018868,2]
[373793505,1753114232558,-460.0,0.00018868,2]
[373793507,1753114232567,-460.0,0.00018868,2]
[373793508,1753114232576,-177.41849238,0.00018868,2]
[373793627,1753114238130,-282.58150762,0.00018868,2]
[373793628,1753114238140,-326.34067465,0.00018868,2]
[373793629,1753114238151,-23.97190198,0.00018868,2]
[373793630,1753114238161,-301.40876993,0.00018868,2]
[373793631,1753114238173,-158.59123007,0.00018868,2]
[373793632,1753114238182,-460.0,0.00018868,2]
[373793633,1753114238192,-460.0,0.00018868,2]
[373793634,1753114238203,-68.91536993,0.00018868,2]
[373793635,1753114238214,-367.54296886,0.00018868,2]
[373793636,1753114238224,-460.0,0.00018868,2]
[373793637,1753114238234,-460.0,0.00018868,2]
[373793638,1753114238245,-433.0472884,0.00018868,2]
[373793639,1753114238257,-26.9527116,0.00018868,2]
[373793640,1753114238266,-460.0,0.00018868,2]
[373793641,1753114238276,-460.0,0.00018868,2]
[373793642,1753114238287,-460.0,0.00018868,2]
[373793643,1753114238297,-460.0,0.00018868,2]
[373793644,1753114238306,-460.0,0.00018868,2]
[373793645,1753114238316,-460.0,0.00018868,2]
[373793646,1753114238326,-460.0,0.00018868,2]
[373793647,1753114238337,-460.0,0.00018868,2]
[373793648,1753114238347,-332.95840479,0.00018868,2]
[373793649,1753114238360,-127.04159521,0.00018868,2]
[373793650,1753114238372,-252.68061219,0.00018868,2]
[373793651,1753114238383,-7239.81072487,0.00018869,2]
[373793710,1753114240103,-328.46025547,0.00018869,2]
[373793713,1753114240118,-4731.8160998,0.00018869,2]
[373793995,1753114243002,-5099.02354125,0.00018869,2]
[373793998,1753114243018,-5007.47419151,0.00018869,2]
[373794006,1753114243087,-2493.4151871,0.00018869,2]
[373794008,1753114243097,-153.11987681,0.00018872,2]
[373794010,1753114243106,-695.37,0.00018972,2]
[373794012,1753114243115,-156.0,0.00019041,3]
[373794014,1753114243127,-460.0,0.00019142,2]
[373794016,1753114243136,-460.0,0.00019142,2]
[373794018,1753114243146,-178.59315011,0.00019142,2]
[373794020,1753114243156,-460.0,0.00019142,2]
[373794022,1753114243165,-460.0,0.00019142,2]
[373794024,1753114243175,-330.47591496,0.00019142,2]
[373794026,1753114243184,-555.89589733,0.00019142,2]
[373794029,1753114243195,-460.0,0.00019142,2]
[373794032,1753114243206,-460.0,0.00019142,2]
[373794034,1753114243216,-460.0,0.00019142,2]
[373794036,1753114243226,-460.0,0.00019142,2]
[373794038,1753114243235,-460.0,0.00019142,2]
[373794040,1753114243245,-460.0,0.00019142,2]
[373794042,1753114243254,-460.0,0.00019142,2]
[373794044,1753114243263,-460.0,0.00019142,2]
[373794046,1753114243273,-460.0,0.00019142,2]
[373794048,1753114243282,-161.1244449,0.00019142,2]
[373794050,1753114243295,-298.8755551,0.00019142,2]
[373794052,1753114243304,-152.24,0.00019142,2]
[373794054,1753114243314,-186.864103,0.00019178,2]
[373794057,1753114243324,-195.21728081,0.00019273,2]
[373794060,1753114243336,-460.0,0.00019416,2]
[373794062,1753114243347,-460.0,0.00019416,2]
[373794064,1753114243357,-460.0,0.00019416,2]
[373794066,1753114243370,-499.93,0.00019416,2]
[373794068,1753114243379,-460.0,0.00019416,2]
[373794070,1753114243389,-460.0,0.00019416,2]
[373794072,1753114243399,-500.0,0.00019636,2]
[373794074,1753114243409,-460.0,0.0001969,2]
[373794076,1753114243419,-460.0,0.0001969,2]
[373794078,1753114243429,-460.0,0.0001969,2]
[373794080,1753114243438,-160.0,0.00019764,2]
[373794082,1753114243448,-525.46718887,0.00019867,2]
[373794084,1753114243457,-460.0,0.00019868,2]
[373794086,1753114243467,-460.0,0.00019868,2]
[373794088,1753114243476,-460.0,0.00019868,2]
[373794090,1753114243487,-460.0,0.00019868,2]
[373794092,1753114243496,-460.0,0.00019868,2]
[373794094,1753114243506,-460.0,0.00019868,2]
[373794096,1753114243515,-460.0,0.00019868,2]
[373794098,1753114243525,-460.0,0.00019868,2]
[373794100,1753114243534,-460.0,0.00019868,2]
[373794102,1753114243543,-187.86743574,0.00019868,2]
[373796397,1753114268293,1773.0,0.00027397,120]
[373796687,1753114272841,150.0,0.00013282,2]
[373796688,1753114273249,168.97,0.0001449,2]
[373796690,1753114273707,253.46,0.00015697,2]
[373796691,1753114274737,337.94,0.00016905,2]
[373796694,1753114352290,150.0,0.00013183,2]
[373796695,1753114352694,150.0,0.00014381,2]
[373796696,1753114353121,218.7,0.0001558,2]
[373796697,1753114353929,291.6,0.00016778,2]
[373796698,1753114354370,364.49,0.00017977,2]
[373796700,1753114427986,150.0,0.00013116,2]
[373796701,1753114428393,150.0,0.00014309,2]
[373796702,1753114429281,173.84,0.00015501,2]
[373796703,1753114429686,231.79,0.00016694,2]
[373796704,1753114430162,289.74,0.00017886,2]
[373796706,1753114454327,212.514003,0.00027397,120]
[373796714,1753114483461,164.153944,0.00013699,2]
[373796716,1753114502822,150.0,0.00013811,2]
[373796717,1753114503196,150.0,0.00015066,2]
[373796718,1753114503617,150.0,0.00016322,2]
[373796719,1753114504058,181.11,0.00017577,2]
[373796720,1753114580527,150.0,0.0001313,2]
[373796721,1753114581132,150.0,0.00014323,2]
[373796722,1753114581555,150.0,0.00015517,2]
[373796723,1753114581965,150.0,0.00016711,2]
[373796724,1753114584612,186.23,0.00017904,2]
[373796727,1753114658537,150.0,0.00013211,2]
[373796728,1753114658995,150.0,0.00014412,2]
[373796729,1753114659865,150.0,0.00015613,2]
[373796730,1753114660267,150.0,0.00016815,2]
[373796731,1753114729333,150.0,0.00013102,2]
[373796733,1753114801599,150.0,0.00013093,2]
[373796734,1753114870493,150.0,0.0001365,2]
[373796750,1753115153281,-1200.0,0.00018865,2]
[373796751,1753115153302,-1200.0,0.00018866,2]
[373796752,1753115153325,-5.57412802,0.00018866,2]
[373796759,1753115245119,-301.02745123,0.00018301,2]
[373796760,1753115245140,-164.71929721,0.00018767,2]
[373796761,1753115245160,-300.0,0.00018865,2]
[373796762,1753115245180,-300.0,0.00018866,2]
[373796763,1753115245201,-300.0,0.00018866,2]
[373796764,1753115245220,-1200.0,0.00018866,2]
[373796765,1753115245241,-460.0,0.00018866,2]
[373796766,1753115245260,-188.89501156,0.00018867,2]
[373796767,1753115245279,-460.0,0.00018867,2]
[373796768,1753115245299,-460.0,0.00018867,2]
[373796769,1753115245321,-463.85214761,0.00018867,2]
[373796770,1753115245342,-460.0,0.00018867,2]
[373796771,1753115245362,-460.0,0.00018867,2]
[373796772,1753115245381,-460.0,0.00018867,2]
[373796773,1753115245402,-164.21028227,0.00018867,2]
[373796774,1753115245421,-460.0,0.00018867,2]
[373796775,1753115245444,-176.8182389,0.00018867,2]
[373796776,1753115245463,-460.0,0.00018867,2]
[373796777,1753115245482,-460.0,0.00018867,2]
[373796778,1753115245503,-460.0,0.00018867,2]
[373796779,1753115245525,-460.0,0.00018867,2]
[373796780,1753115245546,-460.0,0.00018867,2]
[373796781,1753115245566,-173.36793713,0.00018867,2]
[373796794,1753115368360,-300.0,0.00018865,2]
[373796795,1753115368381,-460.0,0.00018866,2]
[373796796,1753115368401,-298.4,0.00018866,2]
[373796984,1753115428591,150.0,0.00013212,2]
[373796985,1753115428981,150.0,0.00014413,2]
[373797018,1753115432741,-285.84200676,0.00018851,2]
[373797020,1753115432751,-102.89539484,0.00018866,2]
[373797025,1753115432793,-58.70460516,0.00018866,2]
[373797027,1753115432803,-460.0,0.00018866,2]
[373797028,1753115432813,-460.0,0.00018866,2]
[373797029,1753115432822,-460.0,0.00018866,2]
[373797030,1753115432832,-180.99539489,0.00018866,2]
[373797047,1753115438112,-279.00460511,0.00018866,2]
[373797048,1753115438123,-460.0,0.00018866,2]
[373797049,1753115438132,-460.0,0.00018866,2]
[373797050,1753115438141,-460.0,0.00018866,2]
[373797052,1753115438151,-460.0,0.00018866,2]
[373797053,1753115438160,-232.56948655,0.00018866,2]
[373797054,1753115438169,-337.7942338,0.00018866,2]
[373797055,1753115438178,-388.63557169,0.00018866,2]
[373797056,1753115438189,-71.36442831,0.00018866,2]
[373797058,1753115438199,-460.0,0.00018866,2]
[373797059,1753115438208,-286.63206287,0.00018867,2]
[373797060,1753115438218,-460.0,0.00018867,2]
[373797061,1753115438227,-460.0,0.00018867,2]
[373797062,1753115438236,-460.0,0.00018867,2]
[373797063,1753115438246,-460.0,0.00018867,2]
[373797064,1753115438255,-460.7798428,0.00018867,2]
[373797065,1753115438264,-460.0,0.00018867,2]
[373797066,1753115438273,-460.0,0.00018867,2]
[373797067,1753115438283,-460.0,0.00018867,2]
[373797068,1753115438292,-460.0,0.00018867,2]
[373797069,1753115438301,-460.0,0.00018867,2]
[373797070,1753115438310,-460.0,0.00018867,2]
[373797071,1753115438319,-460.0,0.00018867,2]
[373797072,1753115438329,-460.0,0.00018867,2]
[373797073,1753115438338,-460.0,0.00018867,2]
[373797074,1753115438347,-34.69863131,0.00018867,2]
[373797075,1753115438359,-425.30136869,0.00018867,2]
[373797076,1753115438369,-460.0,0.00018867,2]
[373797077,1753115438379,-460.0,0.00018867,2]
[373797078,1753115438388,-460.0,0.00018867,2]
[373797079,1753115438397,-460.0,0.00018867,2]
[373797080,1753115438406,-460.0,0.00018867,2]
[373797081,1753115438415,-460.0,0.00018867,2]
[373797082,1753115438424,-164.77970811,0.00018867,2]
[373797083,1753115438445,-295.22029189,0.00018867,2]
[373797084,1753115438455,-460.0,0.00018867,2]
[373797085,1753115438465,-460.0,0.00018867,2]
[373797086,1753115438474,-460.0,0.00018867,2]
[373797087,1753115438486,-460.0,0.00018867,2]
[373797088,1753115438496,-460.0,0.00018867,2]
[373797089,1753115438506,-460.0,0.00018867,2]
[373797090,1753115438515,-500.0,0.00018867,2]
[373797091,1753115438525,-460.0,0.00018867,2]
[373797092,1753115438535,-460.0,0.00018867,2]
[373797093,1753115438544,-460.0,0.00018867,2]
[373797094,1753115438553,-460.0,0.00018867,2]
[373797095,1753115438563,-367.20890011,0.00018867,2]
[373797310,1753115441688,-92.79109989,0.00018867,2]
[373797312,1753115441697,-460.0,0.00018867,2]
[373797314,1753115441707,-460.0,0.00018867,2]
[373797316,1753115441716,-460.0,0.00018867,2]
[373797318,1753115441726,-460.0,0.00018867,2]
[373797320,1753115441735,-460.0,0.00018867,2]
[373797322,1753115441745,-460.0,0.00018867,2]
[373797324,1753115441755,-460.0,0.00018867,2]
[373797326,1753115441765,-460.0,0.00018867,2]
[373797328,1753115441774,-460.0,0.00018867,2]
[373797330,1753115441783,-460.0,0.00018867,2]
[373797332,1753115441792,-460.0,0.00018867,2]
[373797334,1753115441802,-460.0,0.00018867,2]
[373797336,1753115441811,-460.0,0.00018867,2]
[373797338,1753115441823,-460.0,0.00018867,2]
[373797340,1753115441832,-460.0,0.00018867,2]
[373797342,1753115441842,-460.0,0.00018867,2]
[373797344,1753115441851,-460.0,0.00018867,2]
[373797346,1753115441861,-579.42869758,0.00018867,2]
[373797348,1753115441873,-460.0,0.00018867,2]
[373797350,1753115441884,-460.0,0.00018867,2]
[373797352,1753115441894,-460.0,0.00018867,2]
[373797354,1753115441903,-460.0,0.00018867,2]
[373797356,1753115441913,-460.0,0.00018867,2]
[373797358,1753115441922,-460.0,0.00018867,2]
[373797360,1753115441932,-460.0,0.00018867,2]
[373797362,1753115441942,-460.0,0.00018867,2]
[373797364,1753115441951,-253.64,0.00018867,2]
[373797366,1753115441961,-460.0,0.00018867,2]
[373797368,1753115441970,-460.0,0.00018867,2]
[373797370,1753115441979,-460.0,0.00018867,2]
[373797372,1753115441989,-461.24939302,0.00018867,2]
[373797374,1753115442000,-461.14535523,0.00018867,2]
[373797376,1753115442010,-460.0,0.00018867,2]
[373797378,1753115442019,-460.0,0.00018867,2]
[373797380,1753115442029,-460.0,0.00018867,2]
[373797383,1753115442039,-460.0,0.00018867,2]
[373797385,1753115442048,-460.0,0.00018867,2]
[373797387,1753115442058,-460.0,0.00018867,2]
[373797389,1753115442069,-460.0,0.00018867,2]
[373797391,1753115442079,-460.0,0.00018867,2]
[373797393,1753115442088,-460.0,0.00018867,2]
[373797395,1753115442097,-460.0,0.00018867,2]
[373797397,1753115442107,-460.0,0.00018867,2]
[373797399,1753115442116,-460.0,0.00018867,2]
[373797401,1753115442128,-151.0,0.00018867,2]
[373797403,1753115442138,-248.32432582,0.00018867,2]
[373797405,1753115442147,-460.0,0.00018867,2]
[373797407,1753115442157,-460.0,0.00018867,2]
[373797409,1753115442166,-460.0,0.00018867,2]
[373797411,1753115442175,-460.0,0.00018867,2]
[373797413,1753115442185,-193.25603902,0.00018867,2]
[373797521,1753115443160,-266.74396098,0.00018867,2]
[373797524,1753115443171,-460.0,0.00018867,2]
[373797526,1753115443181,-479.51394439,0.00018867,2]
[373797528,1753115443191,-460.0,0.00018867,2]
[373797530,1753115443200,-460.0,0.00018867,2]
[373797532,1753115443209,-460.0,0.00018867,2]
[373797534,1753115443219,-460.0,0.00018868,2]
[373797536,1753115443228,-460.0,0.00018868,2]
[373797538,1753115443238,-460.0,0.00018868,2]
[373797540,1753115443248,-460.0,0.00018868,2]
[373797542,1753115443257,-460.0,0.00018868,2]
[373797544,1753115443266,-460.0,0.00018868,2]
[373797545,1753115443276,-460.0,0.00018868,2]
[373797546,1753115443285,-500.0,0.00018868,2]
[373797547,1753115443295,-500.0,0.00018868,2]
[373797548,1753115443304,-460.0,0.00018868,2]
[373797549,1753115443314,-460.0,0.00018868,2]
[373797550,1753115443324,-248.2215431,0.00018868,2]
[373797551,1753115443333,-151.0,0.00018868,2]
[373797552,1753115443343,-191.53474751,0.00018868,2]
[373797553,1753115443352,-500.0,0.00018868,2]
[373797554,1753115443361,-151.0,0.00018868,2]
[373797555,1753115443371,-500.0,0.00018868,2]
[373797556,1753115443381,-460.0,0.00018868,2]
[373797557,1753115443391,-151.0,0.00018868,2]
[373797558,1753115443400,-561.66,0.00018868,2]
[373797559,1753115443409,-151.0,0.00018868,2]
[373797560,1753115443419,-151.0,0.00018868,2]
[373797561,1753115443428,-460.0,0.00018868,2]
[373797562,1753115443437,-157.79145537,0.000189,2]
[373797563,1753115443447,-4.53435214,0.00019041,3]
[373797564,1753115443459,-160.46564786,0.00019041,3]
[373797565,1753115443468,-460.0,0.0001914,2]
[373797567,1753115443478,-250.01,0.0001914,2]
[373797568,1753115443487,-460.0,0.0001914,2]
[373797570,1753115443496,-151.0,0.00019141,2]
[373797572,1753115443506,-210.26,0.00019141,2]
[373797574,1753115443515,-272.13256426,0.00019141,2]
[373797576,1753115443525,-460.0,0.00019141,2]
[373797578,1753115443534,-460.0,0.00019141,2]
[373797580,1753115443543,-87.76756423,0.00019141,2]
[373797850,1753115446193,-96.56263844,0.00019141,2]
[373797852,1753115446203,-460.0,0.00019141,2]
[373797854,1753115446213,-460.0,0.00019141,2]
[373797856,1753115446223,-460.0,0.00019141,2]
[373797858,1753115446233,-460.0,0.00019141,2]
[373797860,1753115446242,-460.0,0.00019141,2]
[373797862,1753115446252,-154.5,0.00019141,2]
[373797864,1753115446266,-540.0,0.00019141,2]
[373797866,1753115446276,-460.0,0.00019141,2]
[373797868,1753115446287,-460.0,0.00019141,2]
[373797870,1753115446296,-460.0,0.00019141,2]
[373797872,1753115446306,-500.0,0.00019142,2]
[373797874,1753115446315,-500.0,0.00019142,2]
[373797876,1753115446324,-111.39984231,0.00019142,2]
[373798434,1753115501387,150.0,0.00013157,2]
[373798436,1753115501791,150.0,0.00014353,2]
[373798437,1753115502276,150.0,0.00015549,2]
[373798445,1753115545147,299.999999,0.00027,120]
[373798451,1753115570104,500.0,0.00027,120]
[373798454,1753115592625,164.153944,0.00013699,2]
[373798456,1753115611865,969.14,0.00027397,120]
[373798459,1753115643953,159.385502,0.00027397,120]
[373798460,1753115688439,500.0,0.00027,120]
[373798464,1753115749791,500.0,0.00027,120]
[373798466,1753115772167,1000.0,0.00027,120]
[373798467,1753115795926,1000.0,0.00027,120]
[373798469,1753115818817,1000.0,0.00027,120]
[373798470,1753115856663,1000.0,0.00027,120]
[373798471,1753115883479,1000.0,0.00027,120]
[373798473,1753115912286,1000.0,0.00027,120]
[373798474,1753115931061,1000.0,0.00027,120]
[373798477,1753115948397,1000.0,0.00027,120]
[373798479,1753115977296,1000.0,0.00027,120]
[373798480,1753116002357,1000.0,0.00027,120]
[373798481,1753116052561,1000.0,0.00027,120]
[373798483,1753116082402,1000.0,0.00027,120]
[373798493,1753116159785,1000.33,0.00027397,120]
[373798507,1753116340147,-215.36508961,0.000182,2]
[373798508,1753116340167,-165.0624811,0.000183,2]
[373798509,1753116340187,-275.10413518,0.00018301,2]
[373798510,1753116340208,-442.59568653,0.00018766,2]
[373798511,1753116340228,-160.0,0.00018859,2]
[373798512,1753116340248,-300.0,0.00018864,2]
[373798513,1753116340268,-300.0,0.00018864,2]
[373798514,1753116340289,-1200.0,0.00018864,2]
[373798515,1753116340308,-463.93652107,0.00018865,2]
[373798516,1753116340329,-460.0,0.00018865,2]
[373798517,1753116340349,-460.0,0.00018865,2]
[373798518,1753116340369,-460.0,0.00018865,2]
[373798519,1753116340392,-102.60727901,0.00018865,2]
[373798526,1753116454148,-157.730424,0.00018299,2]
[373798527,1753116454171,-300.0,0.00018864,2]
[373798528,1753116454194,-360.74581039,0.00018865,2]
[373798529,1753116454216,-466.48165428,0.00018865,2]
[373798530,1753116454238,-462.96311802,0.00018865,2]
[373798531,1753116454263,-505.51816434,0.00018865,2]
[373798548,1753116551184,150.0,0.00013094,2]
[373798549,1753116551638,150.0,0.00014285,2]
[373798550,1753116552123,-300.0,0.00018864,2]
[373798551,1753116552146,-94.39245754,0.00018865,2]
[373798552,1753116552168,-460.0,0.00018865,2]
[373798553,1753116552190,-261.80326504,0.00018865,2]
[373798559,1753116597427,164.153944,0.00013699,2]
[373798590,1753116632255,-300.0,0.00018864,2]
[373798591,1753116632265,-480.0,0.00018864,2]
[373798592,1753116632275,-252.60607937,0.00018864,2]
[373798593,1753116632284,-565.03141817,0.00018865,2]
[373798594,1753116632294,-472.98111678,0.00018865,2]
[373798595,1753116632303,-399.2313371,0.00018865,2]
[373798596,1753116632315,-60.7686629,0.00018865,2]
[373798598,1753116632325,-460.0,0.00018865,2]
[373798600,1753116632335,-460.0,0.00018865,2]
[373798602,1753116632345,-460.0,0.00018865,2]
[373798604,1753116632354,-460.0,0.00018865,2]
[373798606,1753116632364,-460.0,0.00018865,2]
[373798608,1753116632373,-460.0,0.00018865,2]
[373798609,1753116632382,-460.0,0.00018865,2]
[373798610,1753116632391,-185.31279556,0.00018865,2]
[373798644,1753116638116,-274.68720444,0.00018865,2]
[373798645,1753116638126,-460.0,0.00018865,2]
[373798646,1753116638135,-460.0,0.00018865,2]
[373798647,1753116638145,-460.7798428,0.00018865,2]
[373798648,1753116638154,-460.0,0.00018865,2]
[373798649,1753116638163,-460.0,0.00018865,2]
[373798650,1753116638172,-460.0,0.00018865,2]
[373798651,1753116638186,-460.0,0.00018865,2]
[373798652,1753116638196,-460.0,0.00018865,2]
[373798653,1753116638205,-460.0,0.00018865,2]
[373798654,1753116638215,-460.0,0.00018865,2]
[373798655,1753116638224,-164.77970811,0.00018865,2]
[373798656,1753116638233,-460.0,0.00018865,2]
[373798657,1753116638242,-601.82,0.00018865,2]
[373798658,1753116638251,-460.0,0.00018865,2]
[373798660,1753116638260,-592.97,0.00018865,2]
[373798661,1753116638270,-460.0,0.00018865,2]
[373798662,1753116638279,-543.09,0.00018865,2]
[373798663,1753116638289,-592.54,0.00018865,2]
[373798665,1753116638298,-460.0,0.00018865,2]
[373798667,1753116638307,-460.0,0.00018865,2]
[373798670,1753116638317,-460.0,0.00018865,2]
[373798672,1753116638327,-460.0,0.00018865,2]
[373798674,1753116638336,-460.0,0.00018865,2]
[373798676,1753116638345,-460.0,0.00018865,2]
[373798678,1753116638354,-217.24,0.00018865,2]
[373798680,1753116638363,-460.0,0.00018865,2]
[373798682,1753116638373,-576.18,0.00018865,2]
[373798684,1753116638382,-460.0,0.00018865,2]
[373798686,1753116638391,-460.0,0.00018865,2]
[373798688,1753116638400,-460.54340045,0.00018865,2]
[373798690,1753116638409,-552.66,0.00018865,2]
[373798692,1753116638418,-460.0,0.00018865,2]